[Event "4NCL Div 1 2024-25"]
[Site "England"]
[Date "2025.01.26"]
[Round "4.14"]
[White "Fitzsimons, David"]
[Black "Galyas, Miklos"]
[Result "0-1"]
[Annotator "TA"]
[ECO "B12"]
[WhiteElo "2317"]
[BlackElo "2374"]
[PlyCount "102"]
[EventDate "2024.11.23"]
[EventType "team-tourn"]
[EventCountry "ENG"]
[SourceTitle "playchess.com"]
[Source "ChessBase"]
[SourceQuality "1"]
[TimeControl "40/6000+30:3000+30"]

{[%evp 9,102,13,18,11,24,21,22,31,31,36,30,6,9,-3,10,-35,-30,0,10,-37,-30,-25,-24,-70,-71,-78,-66,-72,-75,-102,-96,-120,-123,-124,-124,-122,-119,-134,-120,-124,-108,-102,-98,-96,-96,-96,-96,-96,-96,-96,-96,-97,-84,-110,-109,-117,-128,-183,-178,-181,-191,-263,-266,-272,-272,-520,-520,-433,-510,-504,-505,-498,-498,-527,-287,-497,-573,-578,-511,-1037,-1006,-1072,-983,-1264,-1138,-29973,-29971,-29970,-29971,-29971,-29975,-29978,-29976,-6095,-6111]} 1. e4 {[%emt 0:10:37]} c6 {[%emt 0:10:07]} 2. d4 {[%emt 0:00:09]} d5 {[%emt 0:00:05]} 3. e5 {[%emt 0:00:10]} Bf5 {[%emt 0:00:09]} 4. Nd2 {[%emt 0:00:22]} e6 {[%emt 0:00:25]} 5. Nb3 {[%emt 0:00:07]} a6 {[%emt 0:00:45][%cal Oc6c5]} 6. Nf3 {[%emt 0:00:47] B12: Caro-Kann: Advance Variation.} c5 {[%emt 0:00:51]} 7. dxc5 {[%emt 0:00:58]} Bxc5 {[%emt 0:00:29]} 8. Nxc5 {[%emt 0:00:10] The position is equal.} Qa5+ {[%emt 0:00:05]} 9. c3 {[%emt 0:00:17]} Qxc5 {[%emt 0:00:08]} 10. Be3 {[%emt 0:00:59]} Qc7 {[%emt 0:01:02]} 11. Qa4+ {[%emt 0:14:19]} Nc6 {[%emt 0:24:07] Black is weak on the dark squares} 12. Be2 {[%emt 0:11:06]} Nge7 {[%emt 0:00:36]} 13. Bc5 {[%emt 0:01:49]} O-O {[%emt 0:03:48][%cal Of8d8]} 14. O-O $146 {[%emt 0:03:52]} (14. Bd6 $11 Qb6 15. Qa3) (14. Bd6 Qd7 15. Qf4 Be4 16. Ng5 Bg6 17. Qg4 h6 18. Nh3 Bf5 19. Qg3 Bxh3 20. Qxh3 {0-1 Tsetskhladze,M (1911)-Mou,I (2086) Wch U14 Girls 2023 (7)}) 14... Nxe5 {[%emt 0:03:44]} 15. Nxe5 {[%emt 0:06:44] White sacrificed a pawn. A sharp opening} Qxe5 {[%emt 0:00:48]} (15... Qxc5 16. Nd7 Qc7 17. Nxf8 Rxf8 18. Rfe1 $14) 16. Rfe1 {[%emt 0:02:06]} (16. Bxe7 $11 {might be stronger.} Rfe8 (16... Qxe2 17. Bxf8 Rxf8 18. Qb4 $16) 17. Bxa6) 16... Qc7 $15 {[%emt 0:01:23]} 17. Qb4 {[%emt 0:00:52]} Nc6 {[%emt 0:02:29]} 18. Qb3 {[%emt 0:01:28]} Rfe8 {[%emt 0:05:51]} 19. Rad1 {[%emt 0:02:02]} b5 {[%emt 0:08:17]} 20. a4 {[%emt 0:04:17]} Na5 {[%emt 0:00:52][%csl LRb3,LRc5]} 21. Qb4 {[%emt 0:00:26]} Nc4 {[%emt 0:01:30] Inhibits Bd6.} 22. Bxc4 {[%emt 0:04:31]} bxc4 {[%emt 0:03:42]} 23. Bd6 {[%emt 0:03:33]} Qc6 {[%emt 0:05:02]} 24. a5 {[%emt 0:00:19]} Bd3 {[%emt 0:00:40]} 25. Qb6 {[%emt 0:03:30]} Rac8 {[%emt 0:03:35]} 26. b4 {[%emt 0:12:34]} Qd7 {[%emt 0:02:54]} 27. Bg3 {[%emt 0:00:43]} (27. Qxa6 $2 Rc6 28. Qb5 Qxd6 $19 (28... Rxd6 $2 29. Qxd7 Rxd7 30. b5 $19)) 27... Rc6 {[%emt 0:02:40]} 28. Qd4 {[%emt 0:00:29]} f6 {[%emt 0:00:43]} 29. f4 {[%emt 0:00:26]} Qe7 {[%emt 0:02:14]} 30. h3 {[%emt 0:04:38]} Be4 {[%emt 0:02:10]} 31. Rd2 {[%emt 0:05:59]} e5 $36 {[%emt 0:01:15][%mdl 2048] Black is in control.} 32. Qe3 {[%emt 0:00:43]} Re6 {[%emt 0:04:44]} 33. Rf2 {[%emt 0:04:39]} (33. Rdd1 $17) 33... g5 {[%emt 0:06:40]} 34. fxe5 {[%emt 0:02:01] [#]} f5 {[%emt 0:00:26]} ({Don't take} 34... fxe5 35. Ra2 $17) 35. Bh2 {[%emt 0:01:59]} (35. Qc5 $142) 35... f4 $19 {[%emt 0:00:05]} 36. Qd4 {[%emt 0:04:26]} Rxe5 {[%emt 0:00:07] aiming for ...Bd3.} 37. Rb2 $2 {[%emt 0:01:57]} (37. Rd2 {might work better.}) 37... Bd3 {[%emt 0:01:51]} 38. Rxe5 {[%emt 0:01:03]} Qxe5 {[%emt 0:00:02]} 39. Qxe5 {[%emt 0:00:12]} Rxe5 {[%emt 0:00:04][%mdl 4096] Endgame KRB-KRB. Black is a pawn up.} 40. Kf2 {[%emt 0:00:56] [#] Against Re1} d4 $1 {[%emt 0:02:05][%mdl 512]} 41. cxd4 {[%emt 0:50:30]} c3 {[%emt 0:53:07]} 42. Rc2 {[%emt 0:00:00]} Bxc2 {[%emt 0:00:00]} 43. dxe5 {[%emt 0:00:00] KB-KB} Be4 {[%emt 0:00:00] ( -> ...c2)} 44. Ke2 {[%emt 0:00:00]} (44. Ke1 $142 Bxg2 45. Kd1) 44... Bxg2 {[%emt 0:00:00] ( -> ...f3+)} 45. Kd3 {[%emt 0:00:00]} Bxh3 {[%emt 0:00:00]} 46. Kxc3 {[%emt 0:00:00]} Kf7 {[%emt 0:00:00] ( -> ...Bg2)} 47. Kd4 {[%emt 0:00:00]} Ke6 {[%emt 0:00:00]} 48. Bg1 {[%emt 0:00:00]} Bg2 {[%emt 0:00:00]} 49. Bh2 {[%emt 0:00:00]} h5 {[%emt 0:00:00]} 50. Bg1 {[%emt 0:00:00]} h4 {[%emt 0:00:00]} 51. Bh2 {[%emt 0:00:00]} h3 {[%emt 0:00:00] Weighted Error Value: White=0.43/Black=0.02 (flawless)   Mistake:       	White=6     	---        Inaccurate:     	White=3     	---        OK:         	White=12    	Black=19     Best:        	White=5     	Black=5} 0-1

[Event "4NCL Div 1 2024-25"]
[Site "England"]
[Date "2025.01.26"]
[Round "4.15"]
[White "Wu, Li"]
[Black "Kalaiyalahan, Akshaya"]
[Result "1-0"]
[Annotator "TA"]
[ECO "D36"]
[WhiteElo "2318"]
[BlackElo "2130"]
[PlyCount "119"]
[EventDate "2024.11.23"]
[EventType "team-tourn"]
[EventCountry "ENG"]
[SourceTitle "playchess.com"]
[Source "ChessBase"]
[SourceQuality "1"]
[TimeControl "40/6000+30:3000+30"]

{[%evp 24,119,6,0,0,-6,21,11,25,20,21,0,0,0,7,-10,-10,-14,-10,-19,-10,-13,-10,-12,-11,-20,0,-8,0,-8,0,-12,-6,-6,-6,-15,0,0,0,0,0,0,-15,-13,0,0,0,0,0,-13,20,0,0,0,0,0,22,31,153,172,153,151,293,275,288,272,283,248,375,272,493,376,526,520,549,549,549,541,539,536,541,562,705,709,970,0,0,0,0,0,251,0,0,0,0,0,29986,29987]} 1. c4 {[%emt 0:10:30]} Nf6 {[%emt 0:10:11]} 2. Nc3 {[%emt 0:00:26]} e6 {[%emt 0:00:22]} 3. d4 {[%emt 0:00:33]} d5 {[%emt 0:00:10]} 4. cxd5 {[%emt 0:00:15]} exd5 {[%emt 0:00:05]} 5. Bg5 {[%emt 0:00:06]} Be7 {[%emt 0:00:16]} 6. e3 {[%emt 0:00:06]} c6 {[%emt 0:00:14]} 7. Bd3 {[%emt 0:00:05]} Nbd7 {[%emt 0:00:20][%cal Bb8d7,Bd7f8,Bf8e6][%mdl 32]} 8. h3 {[%emt 0:03:12]} Nf8 {[%emt 0:00:51]} 9. Nf3 {[%emt 0:04:24]} Ne6 {[%emt 0:02:36]} 10. Bh4 {[%emt 0:00:21]} O-O {[%emt 0:00:49]} 11. Qc2 {[%emt 0:03:33]} g6 {[%emt 0:02:31]} 12. O-O {[%emt 0:06:55]} Ng7 {[%emt 0:06:25]} 13. Bxf6 {[%emt 0:04:27]} Bxf6 {[%emt 0:00:05] D36: Queen's Gambit Declined: Exchange Variation: Main line (5 Bg5 c6 6 Qc2).} 14. b4 {[%emt 0:00:02]} Bf5 {[%emt 0:09:24]} 15. Rfc1 $146 {[%emt 0:04:51]} (15. b5 Rc8 16. bxc6 bxc6 17. Na4 Bxd3 18. Qxd3 Ne6 19. Rac1 Qa5 20. Nc5 Nxc5 21. Rxc5 Qxa2 {½-½ Vahidov,T (2401)-Osmak,I (2438) PNWCC Online blitz JP 16th 2020 (8)}) 15... Rc8 {[%emt 0:06:35] The position is equal.} 16. Rab1 {[%emt 0:02:29]} a6 {[%emt 0:00:18]} 17. Na4 {[%emt 0:01:15]} Bxd3 {[%emt 0:00:53]} 18. Qxd3 {[%emt 0:00:05]} Nf5 {[%emt 0:00:37]} 19. Nc5 {[%emt 0:04:50]} Nd6 {[%emt 0:00:34]} 20. g3 {[%emt 0:02:37]} Re8 {[%emt 0:01:00]} 21. Kg2 {[%emt 0:00:05]} Rc7 {[%emt 0:06:40]} 22. Rb3 {[%emt 0:07:40]} Bg7 {[%emt 0:02:34]} 23. a4 {[%emt 0:02:30]} h5 {[%emt 0:06:43]} 24. h4 {[%emt 0:03:07]} Bf6 {[%emt 0:05:18]} 25. Qb1 {[%emt 0:09:14]} Qe7 {[%emt 0:09:46]} 26. Nd3 {[%emt 0:02:00]} Nc4 {[%emt 0:14:13]} 27. Qa2 {[%emt 0:11:18]} Rec8 {[%emt 0:02:27]} 28. Re1 {[%emt 0:03:46]} Qe8 {[%emt 0:02:45]} 29. Nf4 {[%emt 0:02:21]} Nd6 {[%emt 0:04:25]} 30. b5 {[%emt 0:05:17]} axb5 {[%emt 0:00:51]} 31. axb5 {[%emt 0:00:03]} Nxb5 {[%emt 0:01:16]} 32. Rxb5 {[%emt 0:02:20]} cxb5 {[%emt 0:00:04]} 33. Nxd5 {[%emt 0:00:03]} Qe6 {[%emt 0:04:30]} 34. e4 $1 {[%emt 0:01:46]} Rc2 {[%emt 0:03:08]} 35. Qb1 {[%emt 0:05:53]} Bd8 {[%emt 0:01:01] Counterplay White} 36. Qxb5 {[%emt 0:00:39]} b6 {[%emt 0:05:28]} 37. Ne5 {[%emt 0:05:12][%mdl 1024] White has compensation. Excellent horsemanship.} Kg7 {[%emt 0:01:56]} 38. Re3 {[%emt 0:03:25]} Bc7 $1 {[%emt 0:01:21]} 39. Nd3 {[%emt 0:01:40]} Qe8 {[%emt 0:00:38]} 40. Qb3 {[%emt 0:00:19]} Rc6 {[%emt 0:00:30] [#]} (40... Bd8 $1 $14) 41. e5 $1 $16 {[%emt 0:21:27] White plays in the center White is much more active.} Qd7 {[%emt 0:25:50]} 42. N5b4 {[%emt 0:08:14]} Re6 {[%emt 0:01:47]} (42... b5 $16) 43. d5 $18 {[%emt 0:00:04]} Ree8 {[%emt 0:00:22]} 44. Nc6 {[%emt 0:01:18]} Bd8 {[%emt 0:02:39][%cal Bc7d8,Bd8e7,Be7f6,Bf6h4][%mdl 32] Black is weak on the dark squares} 45. Rf3 {[%emt 0:00:31]} Rf8 {[%emt 0:04:10]} (45... Bc7 {was necessary.} 46. Qc4 Bd8) 46. Qc4 {[%emt 0:01:01]} Qb7 $2 {[%emt 0:10:09]} (46... Qg4 47. Rf4 Qd7) 47. Qe4 {[%emt 0:05:21]} Be7 {[%emt 0:02:55]} 48. Nf4 {[%emt 0:00:43]} b5 {[%emt 0:01:18]} 49. e6 {[%emt 0:09:17] White wants to mate with exf7.} f5 {[%emt 0:00:19]} 50. Qd4+ {[%emt 0:00:55]} Bf6 {[%emt 0:00:40]} 51. Qc5 {[%emt 0:00:11]} Rfe8 {[%emt 0:01:16]} 52. Rb3 {[%emt 0:00:38]} Qc7 {[%emt 0:01:11]} 53. Rxb5 {[%emt 0:01:07] and Qb4 would now be decisive} Bxh4 {[%emt 0:01:12]} 54. d6 $2 {[%emt 0:02:40]} (54. Qb4 $18 Be7 55. Nxe7 Rxe7 56. d6 Qc6+ 57. Kh2) 54... Qxc6+ $11 {[%emt 0:00:27]} 55. Qxc6 {[%emt 0:00:03]} Rxc6 {[%emt 0:00:04]} 56. d7 {[%emt 0:00:07] The board is on fire.} Rexe6 {[%emt 0:01:49][%mdl 8192]} (56... Rd8 $11 57. gxh4 Kf6) 57. Nxe6+ $2 {[%emt 0:00:06]} (57. gxh4 $18 Red6 58. Ne6+ Kf6 59. d8=Q+ (59. d8=R Rxe6 60. Rb4 Re4 $11) 59... Rxd8 60. Nxd8) 57... Rxe6 {[%emt 0:00:04]} 58. gxh4 {[%emt 0:00:03]} Rd6 {[%emt 0:00:05]} 59. Rb7 {[%emt 0:00:21]} Kf6 $2 {[%emt 0:00:04][%mdl 8192] [#]} (59... Kf8 $11) 60. Rb6 $3 {[%emt 0:00:08][%mdl 512] Weighted Error Value: White=0.32/Black=0.59  Loses game:     	---       	Black=2      Missed win:     	White=1     	---        Mistake:       	---       	Black=4      Inaccurate:     	---       	Black=4      OK:         	White=17    	Black=9      Best:        	White=5     	Black=1      Strong:       	White=1     	Black=1      Brilliant:      	White=1     	---} 1-0

[Event "4NCL Div 1 2024-25"]
[Site "England"]
[Date "2025.01.26"]
[Round "4.16"]
[White "Sygnowski, Tomasz"]
[Black "Terbe, Julianna"]
[Result "0-1"]
[Annotator "TA"]
[ECO "B33"]
[WhiteElo "2101"]
[BlackElo "2225"]
[PlyCount "66"]
[EventDate "2024.11.23"]
[EventType "team-tourn"]
[EventCountry "ENG"]
[SourceTitle "playchess.com"]
[Source "ChessBase"]
[SourceQuality "1"]
[TimeControl "40/6000+30:3000+30"]

{[%evp 14,66,15,13,15,0,0,0,0,0,0,-2,-3,-80,-73,-121,-95,-134,-93,-94,-93,-90,-87,-183,-189,-157,-166,-200,-153,-184,-168,-159,-150,-151,-152,-155,-164,-145,-151,-183,-181,-279,-282,-272,-264,-386,-404,-405,-432,-435,-404,-423,-389,-909,-895]} 1. e4 {[%emt 0:11:16]} c5 {[%emt 0:10:09]} 2. Nf3 {[%emt 0:00:55]} Nc6 {[%emt 0:00:11]} 3. d4 {[%emt 0:00:04]} cxd4 {[%emt 0:00:04]} 4. Nxd4 {[%emt 0:00:04]} Nf6 {[%emt 0:00:06]} 5. Nc3 {[%emt 0:01:01]} e5 {[%emt 0:00:06]} 6. Nxc6 {[%emt 0:02:55]} bxc6 {[%emt 0:00:07]} 7. Bd3 {[%emt 0:03:03]} Bc5 {[%emt 0:03:10]} 8. O-O {[%emt 0:01:02]} O-O {[%emt 0:02:00]} 9. Bg5 {[%emt 0:00:36]} h6 {[%emt 0:00:47]} 10. Bh4 {[%emt 0:00:03]} a5 {[%emt 0:01:29] The position is equal.} 11. Kh1 {[%emt 0:08:46]} g5 {[%emt 0:00:36]} 12. Bg3 {[%emt 0:00:09]} Qe7 {[%emt 0:03:35]} 13. h4 {[%emt 0:09:26]} (13. Na4 $11 {remains equal.}) 13... d6 {[%emt 0:07:57]} 14. Qe2 {[%emt 0:15:08]} (14. Na4 $142) 14... Kg7 {[%emt 0:11:40]} 15. Nd1 {[%emt 0:06:59]} Bg4 {[%emt 0:10:18]} 16. Qd2 {[%emt 0:03:07]} Nh5 {[%emt 0:02:34]} 17. Bh2 {[%emt 0:02:05]} gxh4 {[%emt 0:03:24] Black has more active pieces.} 18. Be2 {[%emt 0:15:28]} ({Avoid the trap} 18. f3 $2 Ng3+ 19. Bxg3 hxg3 $19) (18. Ne3 $17 Be6 19. Nf5+ Bxf5 20. exf5) 18... Bxe2 $19 {[%emt 0:03:48]} 19. Qxe2 {[%emt 0:00:06]} Qg5 {[%emt 0:00:08]} 20. Nc3 {[%emt 0:18:09]} a4 {[%emt 0:08:43]} 21. Rad1 {[%emt 0:00:33]} Kh7 {[%emt 0:01:19]} 22. Qf3 {[%emt 0:01:54]} f5 {[%emt 0:09:21]} 23. Qh3 {[%emt 0:02:20]} f4 {[%emt 0:05:49]} 24. b3 {[%emt 0:00:05]} axb3 {[%emt 0:02:23]} 25. axb3 {[%emt 0:00:17]} Rad8 {[%emt 0:00:21]} 26. Rd3 {[%emt 0:01:21]} Rf6 {[%emt 0:03:51]} 27. Ne2 {[%emt 0:01:28]} (27. Nb1 {was worth a try.}) 27... Rg8 {[%emt 0:05:10]} 28. Ng1 {[%emt 0:00:29]} Rfg6 {[%emt 0:01:22][%cal Rg5g2]} 29. Nf3 {[%emt 0:00:36]} (29. b4 $142 Bxb4 (29... Qxg2+ $2 {too greedy.} 30. Qxg2 Rxg2 31. bxc5 $18) 30. Nf3 Qxg2+ 31. Qxg2 Rxg2 32. Nxh4) 29... Qxg2+ {[%emt 0:01:41]} 30. Qxg2 {[%emt 0:00:08]} Rxg2 {[%emt 0:00:02]} 31. Nxh4 {[%emt 0:00:07] White is weak on the dark squares} Rxf2 {[%emt 0:00:42]} 32. Rxf2 {[%emt 0:00:05]} Bxf2 {[%emt 0:00:04]} 33. Rxd6 $2 {[%emt 0:00:15] [#]} (33. Nf5 Bc5 34. b4 Bxb4 35. Bg1) 33... Bxh4 {[%emt 0:00:17] Weighted Error Value: White=0.45/Black=0.07 (flawless) .  Mistake:       	White=6     	---        Inaccurate:     	White=1     	Black=1      OK:         	White=10    	Black=14     Best:        	---       	Black=2} 0-1

[Event "4NCL Div 1 2024-25"]
[Site "England"]
[Date "2025.01.26"]
[Round "4.17"]
[White "Makkar, Rajat"]
[Black "Eggleston, David J"]
[Result "1/2-1/2"]
[Annotator "TA"]
[ECO "E11"]
[WhiteElo "2432"]
[BlackElo "2339"]
[PlyCount "100"]
[EventDate "2024.11.23"]
[EventType "team-tourn"]
[EventCountry "ENG"]
[SourceTitle "playchess.com"]
[Source "ChessBase"]
[SourceQuality "1"]
[TimeControl "40/6000+30:3000+30"]

{[%evp 10,100,35,20,33,36,42,49,46,6,15,24,22,22,20,0,9,8,0,0,0,0,10,-11,-11,-13,-3,-12,-12,-4,-10,-8,0,-63,-59,-105,-110,-137,-128,-169,-184,-184,-27,-7,-15,-205,-189,-184,-154,-144,-135,-159,-152,-175,-172,-204,-208,-200,-202,-242,-237,-298,-297,-297,-300,-279,-286,-324,-330,-343,-143,-112,0,-251,-206,-251,-251,-251,-251,-251,-158,-158,-158,-158,-158,-158,-158,-158,-29,-158,-158,-158,-158]} 1. d4 {[%emt 0:10:02]} Nf6 {[%emt 0:10:11]} 2. c4 {[%emt 0:00:05]} e6 {[%emt 0:00:04]} 3. Nf3 {[%emt 0:00:03]} Bb4+ {[%emt 0:00:37]} 4. Nbd2 {[%emt 0:00:12]} O-O {[%emt 0:00:51]} 5. a3 {[%emt 0:00:14]} Be7 {[%emt 0:00:44]} 6. e4 {[%emt 0:00:18]} d6 {[%emt 0:00:09][%cal Oe6e5] E11: Bogo-Indian.} 7. Be2 $1 {[%emt 0:00:04] 7.Be2 is better than 7.Bd3.} Nc6 {[%emt 0:10:31]} 8. b4 {[%emt 0:06:31]} e5 {[%emt 0:01:37] White is slightly better.} 9. dxe5 {[%emt 0:08:59]} Nxe5 {[%emt 0:03:08]} 10. Nxe5 {[%emt 0:01:57]} dxe5 {[%emt 0:00:12]} 11. Bb2 {[%emt 0:00:32] Wards off Qd4} Re8 $146 {[%emt 0:07:40]} (11... a5 12. Bc3 axb4 13. axb4 Rxa1 14. Qxa1 b6 15. O-O Bb7 16. f3 Bd6 17. Qa7 Bc6 {½-½ Bolado Saez,S (2360)-Moreno Ruiz,J (2461) Madrid-chT 1819 2018 (9.2)}) 12. Bxe5 {[%emt 0:10:30]} Bxb4 {[%emt 0:00:36]} 13. axb4 {[%emt 0:00:45]} Rxe5 {[%emt 0:00:12]} 14. f4 {[%emt 0:01:13]} Re8 {[%emt 0:00:41][%cal Od8d4]} 15. e5 {[%emt 0:02:17]} Ng4 {[%emt 0:02:27]} 16. Bxg4 {[%emt 0:11:54]} (16. Nf3 $5) 16... Qh4+ {[%emt 0:00:12]} 17. g3 {[%emt 0:00:05]} Qxg4 {[%emt 0:00:09]} 18. Qxg4 {[%emt 0:02:10]} Bxg4 {[%emt 0:00:02]} 19. h3 {[%emt 0:00:12]} Be6 {[%emt 0:05:17]} 20. g4 {[%emt 0:03:03]} a6 {[%emt 0:06:03]} 21. Rh2 {[%emt 0:04:38]} (21. Ke2 $11) 21... Rad8 $15 {[%emt 0:06:33]} 22. f5 {[%emt 0:03:32]} (22. O-O-O $15) 22... Bc8 $1 $17 {[%emt 0:04:10]} 23. Re2 {[%emt 0:05:22]} Rd3 {[%emt 0:00:15]} 24. O-O-O {[%emt 0:05:05]} Rxh3 {[%emt 0:03:53]} 25. Ne4 {[%emt 0:01:33]} h5 $2 {[%emt 0:00:24]} (25... Rxe5 26. Rd8+) (25... Rh4 $1 $19 {[%cal Rh4g4]} 26. Rg1 h6 (26... Rxe5 27. Rd1 $11)) 26. e6 $1 $11 {[%emt 0:03:23]} fxe6 {[%emt 0:08:11]} 27. fxe6 {[%emt 0:01:25]} (27. f6 $1 $11 hxg4 28. Rf2) 27... hxg4 $19 {[%emt 0:11:04][%cal Oh3f3]} (27... Bxe6 28. Ng5 Rc3+ 29. Kb2 $11) 28. e7 {[%emt 0:00:46]} Bf5 {[%emt 0:00:16]} (28... Rxe7 29. Rd8+ Kf7 30. Rxc8 $16) 29. Rd8 {[%emt 0:13:58]} Bg6 {[%emt 0:00:09]} 30. Ng5 {[%emt 0:00:38][%cal Oe2f2] [#] And now Rf2! would win.} Rh1+ $1 {[%emt 0:03:42]} (30... Rc3+ $2 31. Kb2 Rf3 (31... Rxc4 $2 32. Rf2 $18) 32. Nxf3 gxf3 33. Re3 $18) 31. Kb2 {[%emt 0:01:10] [#]} g3 {[%emt 0:00:29] Wards off Rf2} (31... Rb1+ 32. Ka2 Rf1 (32... Rxb4 33. Rf2 Bb1+ 34. Ka3) 33. Ne6 $11) 32. Ka3 {[%emt 0:02:01] [#]} g2 $1 {[%emt 0:05:16]} 33. Rxg2 {[%emt 0:02:25]} Re1 {[%emt 0:00:05]} 34. Rgd2 {[%emt 0:06:28]} R1xe7 {[%emt 0:01:45]} 35. b5 {[%emt 0:00:29]} axb5 {[%emt 0:00:23]} 36. cxb5 {[%emt 0:00:04]} Rxd8 {[%emt 0:02:43]} 37. Rxd8+ {[%emt 0:00:08][%mdl 4096] Endgame KRB-KRN. Black is two pawns up.} Be8 {[%emt 0:00:10]} 38. Rc8 {[%emt 0:00:46]} g6 {[%emt 0:00:34]} 39. Kb4 {[%emt 0:00:27]} Re5 {[%emt 0:01:38]} (39... Kg7 $19 {has better winning chances. And now ...Kf6 would win.} 40. Rxc7 Rxc7 41. Ne6+ Kf6 42. Nxc7 Bd7) 40. Nf3 $17 {[%emt 0:00:59]} Re7 {[%emt 0:03:06]} ({Not} 40... Rxb5+ 41. Kc4 $14) (40... Re3 $17 41. Nd4 Re7) 41. Ng5 $1 $19 {[%emt 0:50:41]} Kf8 {[%emt 0:55:06]} 42. Rxc7 {[%emt 0:00:00]} Rxc7 {[%emt 0:00:00]} 43. Ne6+ {[%emt 0:00:00]} Ke7 {[%emt 0:00:00]} 44. Nxc7 {[%emt 0:00:00] KB-KN. Black is a pawn up.} Bf7 {[%emt 0:00:00]} 45. Kc5 {[%emt 0:00:00]} g5 {[%emt 0:00:00]} 46. Kd4 {[%emt 0:00:00]} Kd6 {[%emt 0:00:00]} 47. b6 {[%emt 0:00:00]} Bg6 {[%emt 0:00:00]} 48. Ke3 {[%emt 0:00:00]} Kc6 {[%emt 0:00:00]} ({Better is} 48... Bf5 $17 49. Nb5+ Kc5) 49. Na8 {[%emt 0:00:00]} (49. Ne6 $11 {was the only way to keep the balance.}) 49... Bf5 {[%emt 0:00:00]} 50. Kf3 {[%emt 0:00:00]} Be6 {[%emt 0:00:00] Weighted Error Value: White=0.25 (precise) /Black=0.24 (precise)   Loses game:     	White=1     	---        Missed win:     	---       	Black=1      Mistake:       	White=3     	Black=3      Inaccurate:     	White=2     	Black=1      OK:         	White=12    	Black=20     Best:        	White=5     	Black=3      Strong:       	White=2     	Black=2} 1/2-1/2

[Event "4NCL Div 1 2024-25"]
[Site "England"]
[Date "2025.01.26"]
[Round "4.18"]
[White "Pert, Richard G"]
[Black "Roberson, Peter T"]
[Result "1/2-1/2"]
[Annotator "TA"]
[ECO "D02"]
[WhiteElo "2399"]
[BlackElo "2432"]
[PlyCount "29"]
[EventDate "2024.11.23"]
[EventType "team-tourn"]
[EventCountry "ENG"]
[SourceTitle "playchess.com"]
[Source "ChessBase"]
[SourceQuality "1"]
[TimeControl "40/6000+30:3000+30"]

{[%evp 9,29,3,3,9,8,7,3,6,10,16,17,17,20,8,8,-8,0,-60,0,-5,0,-7]} 1. d4 {[%emt 0:13:18]} d5 {[%emt 0:10:07]} 2. Nf3 {[%emt 0:00:26]} Nf6 {[%emt 0:00:29]} 3. Bf4 {[%emt 0:00:07]} c5 {[%emt 0:01:08]} 4. e3 {[%emt 0:00:05]} Nc6 {[%emt 0:00:14]} 5. Nbd2 {[%emt 0:00:05]} Bg4 {[%emt 0:01:34]} 6. h3 {[%emt 0:01:24] D02: 1 d4 d5 2 Nf3 sidelines, including 2...Nf6 3 g3 and 2...Nf6 3 Bf4.} Bxf3 {[%emt 0:06:18]} 7. Nxf3 {[%emt 0:02:23]} e6 {[%emt 0:00:07]} 8. Be2 {[%emt 0:01:09]} Bd6 {[%emt 0:03:05]} 9. dxc5 {[%emt 0:01:07]} Bxf4 {[%emt 0:02:57]} 10. exf4 {[%emt 0:00:05]} Ne4 {[%emt 0:02:33]} 11. O-O {[%emt 0:02:00]} Nxc5 {[%emt 0:00:57]} 12. c4 $146 {[%emt 0:21:43]} (12. Qd2 O-O 13. Rad1 Qb6 14. c3 Rfd8 15. Qc2 h6 16. g3 Rac8 17. Kg2 a6 18. h4 {½-½ Grover,S (2488)-Ostrovskiy,A (2370) Budapest Vezerkepzo GM 09 2023 (4)}) 12... d4 {[%emt 0:08:46] [#] and ...d3 should not be overlooked} 13. Qd2 {[%emt 0:18:51]} (13. b4 $11 Nxb4 14. Nxd4) 13... Qf6 {[%emt 0:13:28]} (13... d3 $15 14. Bd1 a5) 14. Rfe1 {[%emt 0:06:43]} O-O {[%emt 0:03:33]} 15. Bf1 {[%emt 0:02:11] An uneventful encounter.   Weighted Error Value: White=0.15 (very precise) /Black=0.08 (flawless)   Mistake:       	White=1     	Black=1      OK:         	White=4     	Black=6} 1/2-1/2